[Event "MČR v rapid šachu družstev 2019"]
[Site "Teplice, Czech Republic"]
[Date "2019.09.15"]
[Round "6.10"]
[White "Sorm, Daniel"]
[Black "Horak, Jiri"]
[Result "1-0"]
[TimeControl "15 min. + 5s"]
[WhiteElo "2313"]
[BlackElo "2151"]

1. d4 {[%clk 00:15:09]} d5 {[%clk 00:15:08]} {[%emt 00:00:02]} 2. c4 {[%clk
00:15:13]} {[%emt 00:00:01]} e6 {[%clk 00:15:12]} 3. Nc3 {[%clk 00:15:17]}
{[%emt 00:00:02]} Nf6 {[%clk 00:15:16]} {[%emt 00:00:01]} 4. cxd5 {[%clk
00:15:21]} {[%emt 00:00:02]} exd5 {[%clk 00:15:18]} {[%emt 00:00:02]} 5. Bg5
{[%clk 00:15:25]} {[%emt 00:00:02]} c6 {[%clk 00:15:21]} {[%emt 00:00:02]} 6.
Qc2 {[%clk 00:15:29]} Nbd7 {[%clk 00:15:12]} {[%emt 00:00:14]} 7. e3 {[%clk
00:15:31]} {[%emt 00:00:03]} h6 {[%clk 00:15:06]} {[%emt 00:00:12]} 8. Bh4
{[%clk 00:15:33]} {[%emt 00:00:03]} Be7 {[%clk 00:15:04]} {[%emt 00:00:06]} 9.
Bd3 {[%clk 00:15:33]} {[%emt 00:00:05]} b6 {[%clk 00:14:59]} {[%emt 00:00:10]}
10. Nf3 {[%clk 00:15:03]} {[%emt 00:00:35]} Bb7 {[%clk 00:15:02]} {[%emt
00:00:02]} 11. Ne5 {[%clk 00:14:52]} {[%emt 00:00:17]} Nxe5 {[%clk 00:14:33]}
{[%emt 00:00:33]} 12. dxe5 {[%clk 00:14:54]} {[%emt 00:00:03]} Nd7 {[%clk
00:14:10]} {[%emt 00:00:28]} 13. Bg3 {[%clk 00:14:46]} {[%emt 00:00:13]} O-O
{[%clk 00:14:08]} {[%emt 00:00:07]} 14. O-O {[%clk 00:14:25]} {[%emt 00:00:25]}
Nc5 {[%clk 00:13:34]} {[%emt 00:00:40]} 15. Bh7+ {[%clk 00:13:30]} {[%emt
00:01:00]} Kh8 {[%clk 00:13:36]} {[%emt 00:00:04]} 16. Bf5 {[%clk 00:13:34]}
Bc8 {[%clk 00:13:17]} {[%emt 00:00:25]} 17. Ne2 {[%clk 00:13:02]} {[%emt
00:00:37]} Bxf5 {[%clk 00:11:33]} {[%emt 00:01:49]} 18. Qxf5 {[%clk 00:13:05]}
{[%emt 00:00:01]} Qc8 {[%clk 00:09:40]} {[%emt 00:01:57]} 19. Qh5 {[%clk
00:12:57]} {[%emt 00:00:13]} Kh7 {[%clk 00:08:56]} {[%emt 00:00:47]} 20. Nd4
{[%clk 00:12:36]} {[%emt 00:00:27]} g6 {[%clk 00:08:37]} {[%emt 00:00:24]} 21.
Qe2 {[%clk 00:12:12]} {[%emt 00:00:29]} Ne6 {[%clk 00:08:31]} {[%emt 00:00:10]}
22. Rac1 {[%clk 00:11:11]} {[%emt 00:01:06]} Nxd4 {[%clk 00:08:12]} {[%emt
00:00:25]} 23. exd4 {[%clk 00:11:14]} {[%emt 00:00:01]} c5 {[%clk 00:07:56]}
{[%emt 00:00:20]} 24. dxc5 {[%clk 00:10:17]} {[%emt 00:01:03]} bxc5 {[%clk
00:07:49]} {[%emt 00:00:12]} 25. Qd3 {[%clk 00:10:20]} {[%emt 00:00:01]} Qf5
{[%clk 00:07:28]} {[%emt 00:00:25]} 26. Qxd5 {[%clk 00:10:03]} {[%emt
00:00:22]} Rfd8 {[%clk 00:06:58]} {[%emt 00:00:34]} 27. Qc4 {[%clk 00:09:47]}
{[%emt 00:00:22]} Rd2 {[%clk 00:06:23]} {[%emt 00:00:40]} 28. Rfe1 {[%clk
00:09:11]} {[%emt 00:00:41]} Qe6 {[%clk 00:05:50]} {[%emt 00:00:38]} 29. Qc3
{[%clk 00:08:09]} {[%emt 00:01:07]} Rad8 {[%clk 00:05:37]} {[%emt 00:00:18]} 30.
Bf4 {[%clk 00:07:58]} {[%emt 00:00:16]} R8d3 {[%clk 00:04:39]} {[%emt
00:01:03]} 31. Bxd2 {[%clk 00:07:51]} {[%emt 00:00:12]} Rxc3 {[%clk 00:04:42]}
{[%emt 00:00:02]} 32. Bxc3 {[%clk 00:07:54]} {[%emt 00:00:02]} Bg5 {[%clk
00:04:14]} {[%emt 00:00:33]} 33. Rcd1 {[%clk 00:07:38]} {[%emt 00:00:20]} h5
{[%clk 00:03:32]} {[%emt 00:00:47]} 34. Rd6 {[%clk 00:06:56]} {[%emt 00:00:47]}
Qxa2 {[%clk 00:03:07]} {[%emt 00:00:30]} 35. e6 {[%clk 00:06:53]} {[%emt
00:00:09]} fxe6 {[%clk 00:02:58]} {[%emt 00:00:14]} 36. Rd7+ {[%clk 00:06:56]}
Kh6 {[%clk 00:02:32]} {[%emt 00:00:32]} 37. Bg7+ {[%clk 00:06:13]} {[%emt
00:00:47]} Kh7 {[%clk 00:02:36]} {[%emt 00:00:02]} 38. g3 {[%clk 00:03:17]}
{[%emt 00:03:02]} Kg8 {[%clk 00:01:30]} {[%emt 00:01:11]} 39. h4 {[%clk
00:02:59]} {[%emt 00:00:23]} Qa4 {[%clk 00:00:47]} {[%emt 00:00:47]} 40. Red1
{[%clk 00:02:44]} {[%emt 00:00:20]} Be7 {[%clk 00:00:18]} {[%emt 00:00:34]} 41.
Be5 {[%clk 00:02:19]} {[%emt 00:00:30]} Kf8 {[%clk 00:00:00]} {[%emt 00:00:25]}
1-0

[Event "MČR v rapid šachu družstev 2019"]
[Site "Teplice, Czech Republic"]
[Date "2019.09.15"]
[Round "6.11"]
[White "Nudcenko, Karel"]
[Black "Strasil, Pavel"]
[Result "1/2-1/2"]
[TimeControl "15 min. + 5s"]
[WhiteElo "2110"]
[BlackElo "2097"]

1. e4 {[%clk 00:15:08]} {[%emt 00:00:03]} e6 {[%clk 00:15:09]} 2. d4 {[%clk
00:15:11]} {[%emt 00:00:02]} d5 {[%clk 00:15:13]} {[%emt 00:00:01]} 3. e5
{[%clk 00:15:13]} {[%emt 00:00:03]} c5 {[%clk 00:15:17]} 4. c3 {[%clk
00:15:17]} {[%emt 00:00:01]} Nc6 {[%clk 00:15:21]} {[%emt 00:00:02]} 5. Nf3
{[%clk 00:15:20]} {[%emt 00:00:01]} Bd7 {[%clk 00:15:25]} {[%emt 00:00:01]} 6.
Bd3 {[%clk 00:15:17]} {[%emt 00:00:08]} Qb6 {[%clk 00:15:15]} {[%emt 00:00:15]}
7. dxc5 {[%clk 00:15:14]} {[%emt 00:00:08]} Bxc5 {[%clk 00:15:17]} {[%emt
00:00:03]} 8. Qe2 {[%clk 00:15:14]} {[%emt 00:00:05]} a5 {[%clk 00:14:55]}
{[%emt 00:00:28]} 9. a4 {[%clk 00:15:06]} {[%emt 00:00:13]} Nge7 {[%clk
00:14:54]} {[%emt 00:00:05]} 10. O-O {[%clk 00:15:00]} {[%emt 00:00:11]} Ng6
{[%clk 00:14:58]} {[%emt 00:00:02]} 11. Na3 {[%clk 00:14:47]} {[%emt 00:00:18]}
O-O {[%clk 00:14:58]} {[%emt 00:00:04]} 12. Nb5 {[%clk 00:14:46]} {[%emt
00:00:06]} Nce7 {[%clk 00:12:56]} {[%emt 00:02:07]} 13. Bd2 {[%clk 00:13:47]}
{[%emt 00:01:04]} Bxb5 {[%clk 00:12:44]} {[%emt 00:00:17]} 14. Bxb5 {[%clk
00:13:47]} {[%emt 00:00:04]} Nc6 {[%clk 00:12:38]} {[%emt 00:00:12]} 15. h4
{[%clk 00:13:30]} {[%emt 00:00:22]} Qc7 {[%clk 00:12:34]} {[%emt 00:00:10]} 16.
Rfe1 {[%clk 00:13:28]} {[%emt 00:00:07]} Be7 {[%clk 00:12:34]} {[%emt
00:00:06]} 17. h5 {[%clk 00:13:28]} {[%emt 00:00:04]} Nh4 {[%clk 00:12:35]}
{[%emt 00:00:04]} 18. Nxh4 {[%clk 00:13:02]} {[%emt 00:00:31]} Bxh4 {[%clk
00:12:39]} {[%emt 00:00:02]} 19. Qg4 {[%clk 00:12:58]} {[%emt 00:00:09]} Be7
{[%clk 00:11:26]} {[%emt 00:01:17]} 20. Bh6 {[%clk 00:12:50]} {[%emt 00:00:13]}
g6 {[%clk 00:11:30]} {[%emt 00:00:01]} 21. hxg6 {[%clk 00:12:42]} {[%emt
00:00:13]} hxg6 {[%clk 00:11:32]} {[%emt 00:00:04]} 22. Bxf8 {[%clk 00:12:36]}
{[%emt 00:00:11]} Bxf8 {[%clk 00:11:33]} {[%emt 00:00:03]} 23. f4 {[%clk
00:12:12]} {[%emt 00:00:29]} Qb6+ {[%clk 00:11:32]} {[%emt 00:00:07]} 24. Kf1
{[%clk 00:12:10]} {[%emt 00:00:07]} Kg7 {[%clk 00:11:27]} {[%emt 00:00:10]} 25.
Ke2 {[%clk 00:12:01]} {[%emt 00:00:14]} Kg8 {[%clk 00:10:26]} {[%emt 00:01:05]}
26. Rh1 {[%clk 00:11:54]} {[%emt 00:00:12]} Bg7 {[%clk 00:10:30]} {[%emt
00:00:02]} 27. Qh3 {[%clk 00:11:17]} {[%emt 00:00:41]} d4 {[%clk 00:10:33]}
{[%emt 00:00:02]} 28. Rad1 {[%clk 00:10:57]} {[%emt 00:00:25]} Rd8 {[%clk
00:10:12]} {[%emt 00:00:27]} 29. Rd2 {[%clk 00:10:28]} {[%emt 00:00:34]} dxc3
{[%clk 00:09:48]} {[%emt 00:00:29]} 30. bxc3 {[%clk 00:10:31]} {[%emt
00:00:02]} Rxd2+ {[%clk 00:09:51]} {[%emt 00:00:02]} 31. Kxd2 {[%clk 00:10:12]}
{[%emt 00:00:24]} Qf2+ {[%clk 00:09:55]} {[%emt 00:00:01]} 32. Kd3 {[%clk
00:10:00]} {[%emt 00:00:17]} Qxf4 {[%clk 00:09:58]} {[%emt 00:00:02]} 33. Bxc6
{[%clk 00:09:29]} {[%emt 00:00:36]} bxc6 {[%clk 00:10:02]} 34. Qf3 {[%clk
00:09:22]} {[%emt 00:00:12]} Qxa4 {[%clk 00:09:53]} {[%emt 00:00:15]} 35. Rf1
{[%clk 00:08:50]} {[%emt 00:00:36]} Qb5+ {[%clk 00:09:28]} {[%emt 00:00:31]} 36.
Kc2 {[%clk 00:08:08]} {[%emt 00:00:47]} Qa4+ {[%clk 00:08:19]} {[%emt
00:01:14]} 37. Kb2 {[%clk 00:08:05]} {[%emt 00:00:08]} Qb5+ {[%clk 00:08:19]}
{[%emt 00:00:05]} 38. Kc2 {[%clk 00:07:27]} {[%emt 00:00:42]} Qa4+ {[%clk
00:07:27]} {[%emt 00:00:57]} 39. Kd3 {[%clk 00:07:28]} {[%emt 00:00:04]} Qb5+
{[%clk 00:07:21]} {[%emt 00:00:12]} 40. Kc2 {[%clk 00:07:31]} {[%emt 00:00:02]}
Qa4+ {[%clk 00:06:15]} {[%emt 00:01:11]} 1/2-1/2

[Event "MČR v rapid šachu družstev 2019"]
[Site "Teplice, Czech Republic"]
[Date "2019.09.15"]
[Round "6.12"]
[White "Krejci, Jan"]
[Black "Tichy, Lukas"]
[Result "1-0"]
[TimeControl "15 min. + 5s"]
[WhiteElo "2496"]
[BlackElo "1869"]

1. Nf3 {[%clk 00:15:08]} {[%emt 00:00:02]} Nf6 {[%clk 00:15:09]} {[%emt
00:00:01]} 2. c4 {[%clk 00:15:11]} {[%emt 00:00:02]} g6 {[%clk 00:15:12]}
{[%emt 00:00:02]} 3. b4 {[%clk 00:15:14]} {[%emt 00:00:02]} Bg7 {[%clk
00:15:13]} {[%emt 00:00:05]} 4. Bb2 {[%clk 00:15:18]} O-O {[%clk 00:15:10]}
{[%emt 00:00:08]} 5. g3 {[%clk 00:15:22]} {[%emt 00:00:02]} d5 {[%clk
00:15:03]} {[%emt 00:00:12]} 6. c5 {[%clk 00:15:17]} {[%emt 00:00:10]} b5
{[%clk 00:14:30]} {[%emt 00:00:37]} 7. Bg2 {[%clk 00:15:11]} {[%emt 00:00:12]}
a5 {[%clk 00:14:17]} {[%emt 00:00:17]} 8. a3 {[%clk 00:15:06]} {[%emt
00:00:10]} axb4 {[%clk 00:14:12]} {[%emt 00:00:10]} 9. axb4 {[%clk 00:15:10]}
{[%emt 00:00:02]} Rxa1 {[%clk 00:14:15]} {[%emt 00:00:01]} 10. Bxa1 {[%clk
00:15:14]} {[%emt 00:00:01]} c6 {[%clk 00:13:31]} {[%emt 00:00:49]} 11. O-O
{[%clk 00:15:15]} {[%emt 00:00:05]} Bf5 {[%clk 00:13:25]} {[%emt 00:00:10]} 12.
d3 {[%clk 00:15:06]} {[%emt 00:00:14]} Nbd7 {[%clk 00:13:06]} {[%emt 00:00:24]}
13. Nd4 {[%clk 00:15:03]} {[%emt 00:00:08]} Qa8 {[%clk 00:12:37]} {[%emt
00:00:34]} 14. Nd2 {[%clk 00:14:01]} {[%emt 00:01:07]} e5 {[%clk 00:12:08]}
{[%emt 00:00:34]} 15. Nxf5 {[%clk 00:13:30]} {[%emt 00:00:36]} gxf5 {[%clk
00:12:12]} 16. Nf3 {[%clk 00:12:10]} {[%emt 00:01:26]} d4 {[%clk 00:11:13]}
{[%emt 00:01:04]} 17. Nh4 {[%clk 00:12:02]} {[%emt 00:00:12]} Nd5 {[%clk
00:10:24]} {[%emt 00:00:54]} 18. Nxf5 {[%clk 00:11:22]} {[%emt 00:00:46]} N7f6
{[%clk 00:09:25]} {[%emt 00:01:03]} 19. Qd2 {[%clk 00:10:50]} {[%emt 00:00:37]}
h6 {[%clk 00:06:25]} {[%emt 00:03:05]} 20. Nxh6+ {[%clk 00:10:38]} {[%emt
00:00:17]} Bxh6 {[%clk 00:05:25]} {[%emt 00:01:06]} 21. Qxh6 {[%clk 00:10:39]}
{[%emt 00:00:03]} Nh7 {[%clk 00:04:43]} {[%emt 00:00:47]} 22. Be4 {[%clk
00:10:10]} {[%emt 00:00:34]} f5 {[%clk 00:04:27]} {[%emt 00:00:21]} 23. Bxf5
{[%clk 00:09:35]} {[%emt 00:00:40]} Nhf6 {[%clk 00:03:12]} {[%emt 00:01:20]} 24.
Be6+ {[%clk 00:09:33]} {[%emt 00:00:08]} 1-0

[Event "MČR v rapid šachu družstev 2019"]
[Site "Teplice, Czech Republic"]
[Date "2019.09.15"]
[Round "6.13"]
[White "Wichs, Jakub"]
[Black "Kourousis, Epaminondas"]
[Result "1/2-1/2"]
[TimeControl "15 min. + 5s"]
[WhiteElo "2090"]
[BlackElo "2388"]

1. e4 {[%clk 00:15:07]} {[%emt 00:00:02]} c5 {[%clk 00:15:09]} {[%emt
00:00:01]} 2. Nf3 {[%clk 00:15:10]} {[%emt 00:00:02]} Nc6 {[%clk 00:15:13]} 3.
Bb5 {[%clk 00:15:13]} {[%emt 00:00:03]} e6 {[%clk 00:15:07]} {[%emt 00:00:10]}
4. O-O {[%clk 00:15:15]} {[%emt 00:00:04]} Nge7 {[%clk 00:15:11]} {[%emt
00:00:01]} 5. Re1 {[%clk 00:15:14]} {[%emt 00:00:06]} a6 {[%clk 00:15:14]}
{[%emt 00:00:02]} 6. Bf1 {[%clk 00:15:16]} {[%emt 00:00:03]} d5 {[%clk
00:15:15]} {[%emt 00:00:03]} 7. exd5 {[%clk 00:15:05]} {[%emt 00:00:16]} Qxd5
{[%clk 00:15:17]} {[%emt 00:00:03]} 8. Nc3 {[%clk 00:14:59]} {[%emt 00:00:12]}
Qd8 {[%clk 00:15:10]} {[%emt 00:00:11]} 9. b3 {[%clk 00:14:25]} {[%emt
00:00:40]} Nf5 {[%clk 00:15:08]} {[%emt 00:00:06]} 10. Bb2 {[%clk 00:14:14]}
{[%emt 00:00:16]} Be7 {[%clk 00:15:11]} {[%emt 00:00:02]} 11. Ne4 {[%emt
00:00:25]} O-O {[%emt 00:00:06]} 12. c3 {[%clk 00:12:44]} {[%emt 00:01:09]} b6
{[%clk 00:15:09]} {[%emt 00:00:11]} 13. d4 {[%clk 00:12:36]} {[%emt 00:00:14]}
cxd4 {[%clk 00:15:10]} {[%emt 00:00:05]} 14. cxd4 {[%clk 00:12:39]} {[%emt
00:00:02]} Bb7 {[%clk 00:14:22]} {[%emt 00:00:52]} 15. a3 {[%clk 00:12:39]}
{[%emt 00:00:05]} Rc8 {[%clk 00:12:29]} {[%emt 00:01:58]} 16. Qd2 {[%clk
00:12:37]} {[%emt 00:00:06]} Na5 {[%clk 00:12:21]} {[%emt 00:00:13]} 17. Qd3
{[%clk 00:11:59]} {[%emt 00:00:41]} Qc7 {[%clk 00:11:18]} {[%emt 00:01:12]} 18.
Rac1 {[%clk 00:10:39]} {[%emt 00:01:25]} Qb8 {[%clk 00:10:56]} {[%emt
00:00:27]} 19. Ne5 {[%clk 00:10:28]} {[%emt 00:00:15]} Rfd8 {[%clk 00:10:40]}
{[%emt 00:00:20]} 20. Qh3 {[%clk 00:07:37]} {[%emt 00:02:56]} Rxc1 {[%clk
00:09:47]} {[%emt 00:00:59]} 21. Bxc1 {[%clk 00:06:59]} {[%emt 00:00:43]} Rxd4
{[%clk 00:08:07]} {[%emt 00:01:45]} 22. Nd2 {[%clk 00:03:58]} {[%emt 00:03:06]}
Rh4 {[%clk 00:05:35]} {[%emt 00:02:37]} 23. Qc3 {[%clk 00:04:02]} {[%emt
00:00:01]} Bf6 {[%clk 00:03:58]} {[%emt 00:01:42]} 24. Ndf3 {[%clk 00:02:57]}
{[%emt 00:01:09]} Bxf3 {[%clk 00:03:00]} {[%emt 00:01:04]} 25. Qxf3 {[%clk
00:03:01]} {[%emt 00:00:01]} Bxe5 {[%clk 00:02:55]} {[%emt 00:00:10]} 26. Rxe5
{[%clk 00:03:04]} {[%emt 00:00:02]} f6 {[%clk 00:02:57]} {[%emt 00:00:03]} 27.
g3 {[%clk 00:02:29]} {[%emt 00:00:40]} Qxe5 {[%clk 00:03:00]} {[%emt 00:00:02]}
28. gxh4 {[%clk 00:02:30]} {[%emt 00:00:05]} Nxh4 {[%clk 00:02:34]} {[%emt
00:00:31]} 29. Qa8+ {[%emt 00:00:11]} Kf7 30. Qa7+ {[%clk 00:02:13]} {[%emt
00:00:15]} Kg6 {[%clk 00:02:32]} {[%emt 00:00:12]} 31. Qxb6 {[%clk 00:01:53]}
{[%emt 00:00:25]} Nf3+ {[%clk 00:01:48]} {[%emt 00:00:48]} 32. Kg2 {[%clk
00:01:56]} {[%emt 00:00:02]} Qd5 {[%clk 00:01:06]} {[%emt 00:00:48]} 33. Kg3
{[%clk 00:01:11]} {[%emt 00:00:50]} Nxb3 {[%clk 00:00:50]} {[%emt 00:00:21]} 34.
Be3 {[%clk 00:00:58]} {[%emt 00:00:17]} Nfd2 {[%clk 00:00:33]} {[%emt
00:00:22]} 35. Be2 {[%clk 00:00:53]} {[%emt 00:00:10]} Ne4+ {[%clk 00:00:25]}
{[%emt 00:00:13]} 36. Kh3 {[%clk 00:00:46]} {[%emt 00:00:11]} Nbd2 {[%clk
00:00:10]} {[%emt 00:00:21]} 37. Qxa6 {[%clk 00:00:31]} {[%emt 00:00:20]} Ng5+
{[%clk 00:00:07]} {[%emt 00:00:08]} 38. Bxg5 {[%clk 00:00:20]} {[%emt
00:00:16]} Kxg5 {[%clk 00:00:07]} {[%emt 00:00:05]} 39. Qd3 {[%clk 00:00:18]}
{[%emt 00:00:07]} Qxd3+ 40. Bxd3 {[%clk 00:00:23]} f5 {[%clk 00:00:09]} {[%emt
00:00:03]} 41. a4 {[%clk 00:00:27]} {[%emt 00:00:01]} Nb3 {[%clk 00:00:13]} 42.
Bc4 {[%clk 00:00:28]} {[%emt 00:00:04]} Nc5 {[%clk 00:00:17]} {[%emt 00:00:01]}
43. a5 {[%clk 00:00:32]} {[%emt 00:00:01]} Kf6 {[%clk 00:00:13]} {[%emt
00:00:08]} 44. a6 {[%clk 00:00:32]} {[%emt 00:00:05]} Nd7 {[%clk 00:00:11]}
{[%emt 00:00:07]} 45. Bb5 {[%clk 00:00:28]} {[%emt 00:00:10]} Nb6 {[%clk
00:00:12]} {[%emt 00:00:04]} 46. Bc6 {[%clk 00:00:29]} {[%emt 00:00:04]} Nc8
{[%clk 00:00:14]} {[%emt 00:00:02]} 47. Bb7 {[%clk 00:00:33]} {[%emt 00:00:02]}
Na7 {[%clk 00:00:19]} 48. Kg3 {[%clk 00:00:31]} {[%emt 00:00:07]} e5 {[%clk
00:00:12]} {[%emt 00:00:11]} 49. Kf3 {[%clk 00:00:35]} g5 {[%clk 00:00:14]}
{[%emt 00:00:03]} 50. Ke3 {[%clk 00:00:37]} {[%emt 00:00:03]} h5 {[%clk
00:00:11]} {[%emt 00:00:08]} 51. Kf3 {[%clk 00:00:40]} {[%emt 00:00:01]} g4+
{[%clk 00:00:14]} {[%emt 00:00:02]} 52. Kg3 {[%clk 00:00:45]} Kg5 {[%clk
00:00:18]} {[%emt 00:00:01]} 53. h4+ {[%clk 00:00:45]} {[%emt 00:00:05]} Kf6
{[%clk 00:00:07]} {[%emt 00:00:16]} 54. Bd5 {[%clk 00:00:43]} {[%emt 00:00:06]}
f4+ {[%clk 00:00:07]} {[%emt 00:00:05]} 55. Kg2 {[%clk 00:00:47]} Kg6 {[%clk
00:00:07]} {[%emt 00:00:06]} 56. Be4+ {[%clk 00:00:50]} {[%emt 00:00:02]} Kh6
{[%clk 00:00:11]} {[%emt 00:00:01]} 57. Kh2 {[%clk 00:00:50]} {[%emt 00:00:04]}
Kg7 {[%clk 00:00:15]} {[%emt 00:00:01]} 58. Kg2 {[%emt 00:00:01]} Kf6 59. Kh2
{[%clk 00:00:57]} {[%emt 00:00:01]} Kg7 {[%clk 00:00:13]} {[%emt 00:00:12]} 60.
Kg2 {[%emt 00:00:24]} 1/2-1/2

[Event "MČR v rapid šachu družstev 2019"]
[Site "Teplice, Czech Republic"]
[Date "2019.09.15"]
[Round "6.14"]
[White "Burdalev, Kirill"]
[Black "Sulc, Jaromir"]
[Result "1-0"]
[TimeControl "15 min. + 5s"]
[WhiteElo "2336"]
[BlackElo "2000"]

1. d4 {[%clk 00:15:08]} {[%emt 00:00:02]} d5 {[%clk 00:15:09]} {[%emt
00:00:01]} 2. Bf4 {[%clk 00:15:10]} {[%emt 00:00:02]} Nf6 {[%clk 00:15:09]}
{[%emt 00:00:05]} 3. e3 {[%clk 00:15:15]} {[%emt 00:00:01]} c6 {[%clk
00:15:09]} {[%emt 00:00:05]} 4. c4 {[%clk 00:15:17]} {[%emt 00:00:02]} e6
{[%clk 00:15:08]} {[%emt 00:00:06]} 5. Nc3 {[%clk 00:15:19]} {[%emt 00:00:04]}
Be7 {[%clk 00:15:09]} {[%emt 00:00:04]} 6. h3 {[%clk 00:15:18]} {[%emt
00:00:06]} Nbd7 {[%clk 00:15:06]} {[%emt 00:00:07]} 7. Nf3 {[%clk 00:15:15]}
{[%emt 00:00:09]} a6 {[%clk 00:14:47]} {[%emt 00:00:24]} 8. Qc2 {[%clk
00:14:48]} {[%emt 00:00:32]} O-O {[%clk 00:14:38]} {[%emt 00:00:13]} 9. Rd1
{[%clk 00:14:23]} {[%emt 00:00:31]} Re8 {[%clk 00:13:15]} {[%emt 00:01:28]} 10.
a3 {[%clk 00:14:15]} {[%emt 00:00:12]} dxc4 {[%clk 00:11:37]} {[%emt 00:01:43]}
11. Bxc4 {[%clk 00:14:19]} {[%emt 00:00:02]} b5 {[%clk 00:11:34]} {[%emt
00:00:08]} 12. Ba2 {[%clk 00:14:23]} {[%emt 00:00:01]} Qb6 {[%clk 00:11:10]}
{[%emt 00:00:29]} 13. O-O {[%clk 00:14:20]} {[%emt 00:00:08]} Bb7 {[%clk
00:11:06]} {[%emt 00:00:09]} 14. e4 {[%clk 00:14:18]} {[%emt 00:00:07]} Rac8
{[%clk 00:10:56]} {[%emt 00:00:15]} 15. Bb1 {[%clk 00:14:09]} {[%emt 00:00:14]}
Nf8 {[%clk 00:10:33]} {[%emt 00:00:28]} 16. e5 {[%clk 00:13:29]} {[%emt
00:00:45]} Nd5 {[%clk 00:10:31]} {[%emt 00:00:07]} 17. Nxd5 {[%clk 00:13:32]}
{[%emt 00:00:01]} cxd5 {[%clk 00:10:33]} {[%emt 00:00:04]} 18. Qd3 {[%clk
00:13:36]} {[%emt 00:00:01]} a5 {[%clk 00:10:00]} {[%emt 00:00:37]} 19. Bg5
{[%clk 00:13:40]} {[%emt 00:00:01]} Ba6 {[%clk 00:09:43]} {[%emt 00:00:23]} 20.
Bxe7 {[%clk 00:13:09]} {[%emt 00:00:36]} Rxe7 {[%clk 00:09:39]} {[%emt
00:00:09]} 21. Qe3 {[%clk 00:13:06]} {[%emt 00:00:07]} b4 {[%clk 00:09:32]}
{[%emt 00:00:12]} 22. Rfe1 {[%clk 00:13:10]} {[%emt 00:00:01]} Rec7 {[%clk
00:09:29]} {[%emt 00:00:09]} 23. h4 {[%clk 00:11:49]} {[%emt 00:01:25]} bxa3
{[%clk 00:09:22]} {[%emt 00:00:12]} 24. Qxa3 {[%clk 00:11:19]} {[%emt
00:00:35]} Rb8 {[%clk 00:08:12]} {[%emt 00:01:15]} 25. Rd2 {[%clk 00:11:16]}
{[%emt 00:00:07]} Rc4 {[%clk 00:08:02]} {[%emt 00:00:16]} 26. h5 {[%clk
00:10:49]} {[%emt 00:00:33]} Rb4 {[%clk 00:07:56]} {[%emt 00:00:10]} 27. h6
{[%clk 00:10:46]} {[%emt 00:00:08]} g6 {[%clk 00:07:26]} {[%emt 00:00:35]} 28.
Qe3 {[%clk 00:10:38]} {[%emt 00:00:13]} Rxb2 {[%clk 00:07:09]} {[%emt
00:00:23]} 29. Rxb2 {[%clk 00:10:31]} {[%emt 00:00:12]} Qxb2 {[%clk 00:07:12]}
{[%emt 00:00:02]} 30. Qg5 {[%clk 00:09:44]} {[%emt 00:00:52]} Nd7 {[%clk
00:07:11]} {[%emt 00:00:06]} 31. Qe7 {[%clk 00:09:12]} {[%emt 00:00:35]} Bb5
{[%clk 00:06:25]} {[%emt 00:00:53]} 32. Ng5 {[%clk 00:09:07]} {[%emt 00:00:09]}
Rf8 {[%clk 00:06:27]} {[%emt 00:00:04]} 33. Nxe6 {[%clk 00:07:29]} {[%emt
00:01:43]} Rc8 {[%clk 00:04:08]} {[%emt 00:02:24]} 34. Ng5 {[%clk 00:07:23]}
{[%emt 00:00:11]} Rf8 {[%clk 00:04:02]} {[%emt 00:00:12]} 35. e6 {[%clk
00:07:25]} {[%emt 00:00:03]} Qd2 {[%clk 00:02:58]} {[%emt 00:01:08]} 36. exd7
{[%clk 00:07:27]} {[%emt 00:00:03]} Bxd7 {[%clk 00:02:58]} {[%emt 00:00:06]} 37.
Bxg6 {[%clk 00:07:13]} {[%emt 00:00:19]} hxg6 {[%clk 00:02:48]} {[%emt
00:00:15]} 38. h7+ {[%clk 00:07:15]} {[%emt 00:00:02]} 1-0